bitfinex-derivatives/quotes_BNBF0:USTF0_20241225
["timestamp","ask_amount","ask_price","bid_price","bid_amount"]
[1735107511377,0.28359944,705.22,704.47,0.457]
[1735107512584,0.28359944,705.22,704.49,1.05850441]
[1735107513786,0.28359944,705.22,704.47,0.457]
[1735107516186,0.28359944,705.22,704.5,1.05850441]
[1735107517389,0.28359944,705.22,704.53,1.05850441]
[1735107518688,0.28359944,705.22,704.48,1.05850441]
[1735107519792,0.28359944,705.22,704.51,1.05850441]
[1735107520393,0.28359944,705.22,704.47,1.51550441]
[1735107521290,0.28359944,705.22,704.53,1.05850441]
[1735107522499,0.28359944,705.22,704.71,1.05850441]
[1735107523793,0.28359944,705.22,704.69,1.05850441]
[1735107524499,0.28359944,705.22,704.67,1.05850441]
[1735107525499,0.28359944,705.22,704.65,1.05850441]
[1735107527702,0.28359944,705.22,704.47,1.51550441]
[1735107528398,0.28359944,705.22,704.48,1.05850441]
[1735107529903,0.28359944,705.22,704.47,1.51550441]
[1735107531107,0.28359944,705.22,704.47,0.457]
[1735107539413,0.28359944,705.22,704.41,1.05850441]
[1735107539812,0.28359944,705.22,704.32,1.05850441]
[1735107540615,0.28359944,705.22,704.33,0.458]
[1735107541013,0.28359944,705.22,704.37,1.05850441]
[1735107542117,0.28359944,705.22,704.38,1.05850441]
[1735107543111,0.28359944,705.22,704.39,1.05850441]
[1735107544116,0.28359944,705.22,704.43,1.05850441]
[1735107544913,0.28359944,705.22,704.48,1.05850441]
[1735107547716,0.28359944,705.22,704.49,1.05850441]
[1735107548619,0.28359944,705.22,704.66,1.05850441]
[1735107549623,0.28359944,705.22,704.63,1.05850441]
[1735107550824,0.28359944,705.22,704.62,1.05850441]
[1735107551623,0.28359944,705.22,704.61,1.05850441]
[1735107553119,0.28359944,705.22,704.44,1.05850441]
[1735107553825,0.28359944,705.22,704.33,0.458]
[1735107553826,0.28359944,705.22,704.42,1.05850441]
[1735107555325,0.28359944,705.22,704.33,0.458]
[1735107562532,0.28359944,705.22,704.36,1.05850441]
[1735107563325,0.28359944,705.22,704.53,1.05850441]
[1735107564334,0.28359944,705.22,704.55,1.05850441]
[1735107565235,0.28359944,705.22,704.5,1.05850441]
[1735107566228,0.28359944,705.22,704.49,1.05850441]
[1735107567735,0.28359944,705.22,704.5,1.05850441]
[1735107567939,0.28359944,705.22,704.51,0.457]
[1735107569041,0.28359944,705.22,704.51,1.51550441]
[1735107570439,0.28359944,705.22,704.51,0.457]
[1735107571943,1.06169592,706.55,704.51,0.457]
[1735107572142,0.28310566,706.45,704.51,0.457]
[1735107572337,0.26071128,706.44,704.51,0.457]
[1735107575940,0.28311769,706.42,704.51,0.457]
[1735107576245,0.26071128,706.41,704.51,0.457]
[1735107577046,0.28311769,706.42,704.51,0.457]
[1735107577245,0.26070774,706.41,704.51,0.457]
[1735107578951,0.26070774,706.41,704.43,1.05850441]
[1735107579751,0.26070774,706.41,704.44,1.05850441]
[1735107579947,0.2607078,706.4,704.44,1.05850441]
[1735107580149,0.2607078,706.39,704.45,0.457]
[1735107580452,0.2607078,706.38,704.45,0.457]
[1735107580647,0.2607078,706.37,704.45,0.457]
[1735107580852,0.2607078,706.36,704.45,0.457]
[1735107581054,0.2607078,706.35,704.45,0.457]
[1735107581246,0.2607078,706.34,704.45,0.457]
[1735107581447,0.2607078,706.33,704.45,0.457]
[1735107581753,0.2607078,706.32,704.45,0.457]
[1735107581952,0.2607078,706.31,704.45,0.457]
[1735107582248,0.2607078,706.3,704.45,0.457]
[1735107582553,0.2607135,706.29,704.46,1.05850441]
[1735107582749,0.2607135,706.41,704.46,1.05850441]
[1735107582954,0.2607135,706.28,704.46,1.05850441]
[1735107583253,0.2607135,706.27,704.46,1.05850441]
[1735107583453,0.2607135,706.26,704.45,0.457]
[1735107583655,0.2607135,706.25,704.45,0.457]
[1735107583853,0.2607135,706.24,704.45,0.457]
[1735107584055,0.2607135,706.23,704.45,0.457]
[1735107584255,0.2607135,706.22,704.47,1.05850441]
[1735107584456,0.2607135,706.21,704.47,1.05850441]
[1735107584655,0.2607135,706.2,704.47,1.05850441]
[1735107584851,0.2607135,706.19,704.47,1.05850441]
[1735107585049,0.28311769,706.42,704.47,1.05850441]
[1735107585050,0.2607135,706.18,704.47,1.05850441]
[1735107585256,0.28311769,706.42,704.45,1.51550441]
[1735107585456,0.26071301,706.41,704.45,1.51550441]
[1735107585955,0.26071301,706.4,704.45,1.51550441]
[1735107586154,0.26071301,706.41,704.45,0.457]
[1735107586456,0.26071301,706.4,704.45,0.457]
[1735107586657,0.26071301,706.39,704.45,0.457]
[1735107586857,0.26071301,706.38,704.45,0.457]
[1735107587058,0.26071301,706.37,704.45,0.457]
[1735107587259,0.26071301,706.36,704.45,0.457]
[1735107587456,1.06169592,706.61,704.45,0.457]
[1735107587457,0.54385875,706.35,704.45,0.457]
[1735107587656,0.26071301,706.34,704.45,0.457]
[1735107588858,0.28315777,706.32,704.45,0.457]
[1735107589059,0.26071301,706.31,704.45,0.457]
[1735107589260,0.2831698,706.29,704.45,0.457]
[1735107589459,0.26071301,706.28,704.45,0.457]
[1735107589659,0.28318183,706.26,704.45,0.457]
[1735107596463,0.26067683,706.25,704.45,0.457]
[1735107596661,0.28319386,706.23,704.45,0.457]
[1735107596861,0.26067683,706.22,704.45,0.457]
[1735107597363,0.26067683,706.22,704.59,1.05850441]
[1735107598064,0.26067683,706.22,704.61,1.05850441]
[1735107598859,0.26067683,706.22,704.64,1.05850441]
[1735107599058,0.28319386,706.23,704.64,1.05850441]
[1735107599869,0.28319386,706.23,704.66,1.05850441]
[1735107600369,0.28319386,706.23,704.67,0.457]
[1735107602567,0.26062218,706.22,704.67,0.457]
[1735107603070,0.26062218,706.22,704.68,1.05850441]
[1735107603862,0.28319386,706.23,704.68,1.05850441]
[1735107604064,0.25290935,706.22,704.68,1.05850441]
[1735107604272,0.25290935,706.22,704.75,1.05850441]
[1735107604663,0.28320589,706.2,704.75,1.05850441]
[1735107605067,0.26060971,706.19,704.75,1.05850441]
[1735107605370,0.28321792,706.17,704.78,1.05850441]
[1735107605570,0.26060971,706.16,704.78,1.05850441]
[1735107605770,0.28322995,706.14,704.78,1.05850441]
[1735107607471,0.28322995,706.14,704.76,1.05850441]
[1735107608671,0.28322995,706.14,704.75,1.05850441]
[1735107611973,0.28322995,706.14,704.74,1.05850441]
[1735107612968,0.28322995,706.14,704.67,0.457]
[1735107612969,0.28322995,706.14,704.72,1.05850441]
[1735107613974,0.28322995,706.14,704.67,0.457]
[1735107617576,0.28322995,706.14,704.8,1.05850441]
[1735107618575,0.28322995,706.14,704.82,1.05850441]
[1735107619878,0.28322995,706.14,704.67,0.457]
[1735107619879,0.28322995,706.14,704.87,1.05850441]
[1735107620876,0.28322995,706.14,704.85,1.05850441]
[1735107621978,0.28322995,706.14,704.87,1.05850441]
[1735107622777,0.28322995,706.14,704.9,1.05850441]
[1735107624079,0.28322995,706.14,704.99,1.05850441]
[1735107625278,0.28322995,706.14,705.0,1.05850441]
[1735107626274,0.28322995,706.14,704.9,1.05850441]
[1735107629681,0.28322995,706.14,704.92,1.05850441]
[1735107630481,0.28322995,706.14,704.94,1.05850441]
[1735107631480,0.28322995,706.14,704.93,0.457]
[1735107634682,0.28322995,706.14,704.93,1.51550441]
[1735107635580,0.28322995,706.14,705.0,1.05850441]
[1735107636577,0.28322995,706.14,704.93,0.457]
[1735107636578,0.28322995,706.14,704.96,1.05850441]
[1735107637982,0.28322995,706.14,705.04,1.05850441]
[1735107638879,0.28322995,706.14,705.06,1.05850441]
[1735107640888,0.28322995,706.14,705.08,1.05850441]
[1735107641687,0.28322995,706.14,705.07,1.05850441]
[1735107642889,0.28322995,706.14,704.93,0.457]
[1735107642890,0.28322995,706.14,705.1,1.05850441]
[1735107644788,0.28322995,706.14,705.13,1.05850441]
[1735107645889,0.28322995,706.14,705.17,1.05850441]
[1735107646689,0.28322995,706.14,705.18,0.457]
[1735107646888,0.28322995,706.14,705.19,1.05850441]
[1735107648094,0.28322995,706.14,705.23,1.05850441]
[1735107649189,0.28322995,706.14,705.25,1.05850441]
[1735107650395,0.28322995,706.14,705.27,1.05850441]
[1735107651295,0.28322995,706.14,705.3,1.05850441]
[1735107651989,0.28322995,706.14,705.33,1.05850441]
[1735107652994,0.28322995,706.14,705.18,0.457]
[1735107652995,0.28322995,706.14,705.31,1.05850441]
[1735107654892,0.28322995,706.14,705.32,1.05850441]
[1735107655797,0.28322995,706.14,705.39,1.05850441]
[1735107656791,0.28322995,706.14,705.38,1.05850441]
[1735107657697,0.28322995,706.14,705.18,0.457]
[1735107657698,0.28322995,706.14,705.39,1.05850441]
[1735107658898,0.28322995,706.14,705.4,1.05850441]
[1735107660798,0.28322995,706.14,705.41,1.05850441]
[1735107661899,0.28322995,706.14,705.4,1.05850441]
[1735107662701,0.28322995,706.14,705.42,1.05850441]
[1735107663798,0.28322995,706.14,705.35,1.05850441]
[1735107665001,0.28322995,706.14,705.38,1.05850441]
[1735107666099,0.28322995,706.14,705.39,1.05850441]
[1735107667006,0.28322995,706.14,705.38,1.05850441]
[1735107668006,0.28322995,706.14,705.4,1.05850441]
[1735107668907,0.28322995,706.14,705.39,1.05850441]
[1735107670109,0.28322995,706.14,705.18,0.457]
[1735107670110,0.28322995,706.14,705.38,1.05850441]
[1735107671200,0.28322995,706.14,705.37,1.05850441]
[1735107672210,0.28322995,706.14,705.27,1.05850441]
[1735107674313,0.28322995,706.14,705.26,1.05850441]
[1735107676315,0.28322995,706.14,705.16,1.05850441]
[1735107676912,0.28322995,706.14,705.17,0.457]
[1735107678517,0.28322995,706.14,705.2,1.05850441]
[1735107679619,0.28322995,706.14,705.17,0.457]
[1735107688026,0.28322995,706.14,705.09,1.05850441]
[1735107689021,0.28322995,706.14,705.1,0.458]
[1735107689828,0.28322995,706.14,705.27,1.05850441]
[1735107692229,0.28322995,706.14,705.1,0.458]
[1735107692230,0.28322995,706.14,705.26,1.05850441]
[1735107694125,0.28322995,706.14,705.31,1.05850441]
[1735107694931,0.28322995,706.14,705.32,1.05850441]
[1735107695832,0.28322995,706.14,705.35,1.05850441]
[1735107697032,0.28322995,706.14,705.1,0.458]
[1735107697033,0.28322995,706.14,705.34,1.05850441]
[1735107698030,0.28322995,706.14,705.1,0.458]
[1735107702936,0.28322995,706.14,705.25,1.05850441]
[1735107703929,0.28322995,706.14,705.23,1.05850441]
[1735107705438,0.28322995,706.14,705.24,0.458]
[1735107705936,0.28322995,706.14,705.26,1.05850441]
[1735107707034,0.28322995,706.14,705.24,0.458]
[1735107717854,0.26054006,706.13,705.24,0.458]
[1735107718047,0.28323797,706.12,705.24,0.458]
[1735107732459,0.28323797,706.12,704.92,1.05850441]
[1735107733452,0.28323797,706.12,705.0,1.05850441]
[1735107734254,0.28323797,706.12,704.93,0.458]
[1735107735757,0.28323797,706.12,704.94,1.05850441]
[1735107736654,0.28323797,706.12,704.93,0.458]
[1735107737453,0.28323797,706.12,704.95,1.05850441]
[1735107737454,0.26060034,706.11,704.95,1.05850441]
[1735107737758,0.28323797,706.12,704.95,1.05850441]
[1735107737954,0.26060093,706.11,704.95,1.05850441]
[1735107738357,0.26060093,706.11,704.99,1.05850441]
[1735107739157,0.26060093,706.11,705.0,1.05850441]
[1735107739564,0.28323797,706.12,705.0,1.05850441]
[1735107740059,0.28323797,706.12,704.96,1.05850441]
[1735107741955,0.28323797,706.12,704.98,1.05850441]
[1735107743162,0.28323797,706.12,704.99,1.05850441]
[1735107744256,0.28323797,706.12,705.02,1.05850441]
[1735107745462,0.28323797,706.12,704.93,0.458]
[1735107752167,0.28323797,706.12,704.95,1.05850441]
[1735107753770,0.28323797,706.12,704.96,0.458]
[1735107754473,0.28323797,706.12,705.05,1.05850441]
[1735107755473,0.28323797,706.12,704.96,0.458]
[1735107776090,0.26063521,706.11,704.96,0.458]
[1735107776287,0.28325001,706.09,704.96,0.458]
[1735107776490,0.26063521,706.08,704.96,0.458]
[1735107776687,0.28326204,706.06,704.96,0.458]
[1735107776992,0.26063521,706.05,704.96,0.458]
[1735107777193,0.28327408,706.03,704.96,0.458]
[1735107777988,0.2606387,706.02,704.96,0.458]
[1735107778188,0.28327408,706.03,704.96,0.458]
[1735107783601,0.26066372,706.02,704.69,1.05850441]
[1735107783801,0.28327408,706.03,704.65,1.05850441]
[1735107784803,0.28327408,706.03,704.66,0.458]
[1735107793208,0.26067848,706.02,704.66,0.458]
[1735107793409,0.28328611,706.0,704.66,0.458]
[1735107799716,0.26069993,705.99,704.66,0.458]
[1735107800312,0.28329815,705.97,704.66,0.458]
[1735107800515,0.26069993,705.96,704.66,0.458]
[1735107801315,0.28331019,705.94,704.66,0.458]
[1735107801512,0.26069993,705.93,704.66,0.458]
[1735107802019,0.28332223,705.91,704.66,0.458]
[1735107802217,0.26070799,705.9,704.66,0.458]
[1735107802422,0.28333427,705.88,704.66,0.458]
[1735107808026,0.28333427,705.88,704.61,1.05850441]
[1735107808725,0.28333427,705.88,704.7,1.05850441]
[1735107808929,0.28333427,705.88,704.71,0.458]
[1735107809527,0.26068883,705.87,704.71,0.458]
[1735107810027,0.28333427,705.88,704.73,1.05850441]
[1735107810332,0.26068333,705.87,704.73,1.05850441]
[1735107810726,0.26068333,705.87,704.77,1.05850441]
[1735107811528,0.28333427,705.88,704.77,1.05850441]
[1735107811732,0.28333427,705.88,704.78,1.05850441]
[1735107811931,0.26067936,705.87,704.78,1.05850441]
[1735107812728,0.26067936,705.87,704.83,1.05850441]
[1735107813131,0.26068484,705.86,704.83,1.05850441]
[1735107813432,0.26068484,705.85,704.83,1.05850441]
[1735107813632,0.28333427,705.88,704.83,1.05850441]
[1735107813633,0.26068484,705.84,704.83,1.05850441]
[1735107813929,0.28333427,705.88,704.82,1.05850441]
[1735107814232,0.26068257,705.87,704.82,1.05850441]
[1735107815233,0.2833423,705.86,704.83,1.05850441]
[1735107815426,0.26068257,705.85,704.83,1.05850441]
[1735107815831,1.06169592,706.21,704.83,1.05850441]
[1735107815832,0.28335033,705.84,704.83,1.05850441]
[1735107816033,0.28335033,705.84,704.82,1.05850441]
[1735107816926,0.28335033,705.84,704.85,1.05850441]
[1735107818533,0.26068693,705.83,704.85,1.05850441]
[1735107818735,0.28335836,705.82,704.85,1.05850441]
[1735107819929,0.26068669,705.81,704.87,1.05850441]
[1735107820130,0.28336639,705.8,704.87,1.05850441]
[1735107820935,0.28336639,705.8,704.89,1.05850441]
[1735107823030,0.28336639,705.8,704.9,1.05850441]
[1735107824138,0.28336639,705.8,704.87,1.05850441]
[1735107827045,0.28336639,705.8,704.86,1.05850441]
[1735107828142,0.26070494,705.79,704.85,1.05850441]
[1735107829247,0.28336639,705.8,704.85,1.05850441]
[1735107829545,0.28336639,705.8,704.81,1.05850441]
[1735107830646,0.28336639,705.8,704.71,0.458]
[1735107836147,0.28336639,705.8,704.48,1.05850441]
[1735107837247,0.28336639,705.8,704.49,0.459]
[1735107839252,0.26074054,705.79,704.49,0.459]
[1735107839453,0.28337442,705.78,704.49,0.459]
[1735107839653,0.26074054,705.77,704.49,0.459]
[1735107840254,0.26074054,705.77,704.64,1.05850441]
[1735107841451,0.26074054,705.77,704.62,1.05850441]
[1735107842351,0.26074054,705.77,704.61,1.05850441]
[1735107842754,0.26074587,705.76,704.61,1.05850441]
[1735107842954,0.26074587,705.75,704.61,1.05850441]
[1735107843153,0.26074587,705.74,704.61,1.05850441]
[1735107843354,0.26074587,705.73,704.61,1.05850441]
[1735107843552,0.26074587,705.72,704.61,1.05850441]
[1735107843753,0.26074587,705.71,704.61,1.05850441]
[1735107843955,0.28337442,705.78,704.49,0.459]
[1735107843956,0.26074587,705.7,704.58,1.05850441]
[1735107844252,0.26074587,705.69,704.58,1.05850441]
[1735107844556,0.26074587,705.68,704.58,1.05850441]
[1735107844757,0.26074587,705.67,704.58,1.05850441]
[1735107844958,0.26074587,705.66,704.58,1.05850441]
[1735107845158,0.26074587,705.65,704.58,1.05850441]
[1735107845359,0.28337442,705.78,704.64,1.05850441]
[1735107845560,0.26074336,705.77,704.64,1.05850441]
[1735107846253,0.2607711,705.76,704.64,1.05850441]
[1735107846452,0.2607711,705.75,704.64,1.05850441]
[1735107846657,0.2607711,705.74,704.64,1.05850441]
[1735107846857,0.2607711,705.73,704.64,1.05850441]
[1735107847057,0.2607711,705.72,704.54,1.05850441]
[1735107847356,0.2607711,705.71,704.54,1.05850441]
[1735107847561,0.2607711,705.7,704.54,1.05850441]
[1735107847757,0.2607711,705.69,704.54,1.05850441]
[1735107847958,0.2607711,705.68,704.54,1.05850441]
[1735107848259,0.26077409,705.67,704.49,0.459]
[1735107848560,0.28337442,705.78,704.49,0.459]
[1735107848752,0.2607766,705.77,704.49,0.459]
[1735107850754,0.28337442,705.78,704.49,0.459]
[1735107851459,0.26079837,705.77,704.49,0.459]
[1735107851860,0.28337442,705.78,704.49,0.459]
[1735107855261,0.28337442,705.78,704.37,1.05850441]
[1735107855662,0.28337442,705.78,704.36,1.05850441]
[1735107856461,0.28337442,705.78,704.37,0.459]
[1735107861162,0.28337442,705.78,704.41,1.05850441]
[1735107862166,0.28337442,705.78,704.42,1.05850441]
[1735107864062,0.28337442,705.78,704.44,1.05850441]
[1735107866665,0.28337442,705.78,704.37,0.459]
[1735107866666,0.28337442,705.78,704.64,1.05850441]
[1735107867665,0.28337442,705.78,704.67,1.05850441]
[1735107868568,0.28337442,705.78,704.65,1.05850441]
[1735107869764,0.28337442,705.78,704.7,1.05850441]
[1735107870863,0.28337442,705.78,704.37,0.459]
[1735107870864,0.28337442,705.78,704.66,1.05850441]
[1735107871864,0.28337442,705.78,704.72,1.05850441]
[1735107872870,0.28337442,705.78,704.68,1.05850441]
[1735107873667,0.28337442,705.78,704.67,1.05850441]
[1735107878076,0.28337442,705.78,704.64,1.05850441]
[1735107879374,0.28337442,705.78,704.67,1.05850441]
[1735107879772,0.28337442,705.78,704.68,0.459]
[1735107884082,0.28337442,705.78,704.68,1.51750441]
[1735107884883,0.28337442,705.78,704.69,1.05850441]
[1735107887988,0.28337442,705.78,704.68,0.459]
[1735107887989,0.28337442,705.78,704.68,1.51750441]
[1735107888990,0.28337442,705.78,704.68,0.459]
[1735107889788,0.26069324,705.77,704.68,0.459]
[1735107889989,0.28338245,705.76,704.68,0.459]
[1735107890191,0.26069324,705.75,704.68,0.459]
[1735107890393,0.28339048,705.74,704.68,0.459]
[1735107901898,0.28339048,705.74,704.71,1.05850441]
[1735107902895,0.26072824,705.73,704.71,1.05850441]
[1735107903092,0.26072824,705.73,704.66,1.05850441]
[1735107903297,0.28339851,705.72,704.67,0.459]
[1735107903490,0.26072824,705.71,704.67,0.459]
[1735107903695,0.28340654,705.7,704.67,0.459]
[1735107903893,0.28340654,705.7,704.68,1.05850441]
[1735107904898,0.28340654,705.7,704.7,1.05850441]
[1735107905899,0.28340654,705.7,704.67,0.459]
[1735107919904,0.2608467,705.69,704.67,0.459]
[1735107920501,0.28341859,705.67,704.67,0.459]
[1735107920901,0.26093363,705.66,704.67,0.459]
[1735107921406,0.28343064,705.64,704.67,0.459]
[1735107921606,0.26093363,705.63,704.67,0.459]
[1735107921904,0.26093363,705.62,703.86,1.05850441]
[1735107922099,0.26093363,705.61,703.86,1.05850441]
[1735107922306,0.28345072,705.59,703.86,1.05850441]
[1735107922499,0.26093363,705.58,703.7,1.05850441]
[1735107922704,0.28346278,705.56,703.7,1.05850441]
[1735107923006,0.26093363,705.55,703.7,1.05850441]
[1735107923399,0.26093363,705.54,703.65,1.05850441]
[1735107923600,0.26093363,705.55,703.65,1.05850441]
[1735107923806,0.26093363,705.54,703.65,1.05850441]
[1735107924005,0.26093363,705.53,703.65,1.05850441]
[1735107924205,0.26093363,705.52,703.65,1.05850441]
[1735107924404,0.26093363,705.51,703.65,1.05850441]
[1735107924602,0.26093363,705.5,703.52,1.05850441]
[1735107924806,0.26093363,705.49,703.52,1.05850441]
[1735107925006,0.26093363,705.48,703.52,1.05850441]
[1735107925207,0.26093363,705.47,703.52,1.05850441]
[1735107925405,0.26093363,705.46,703.52,1.05850441]
[1735107925603,0.26093363,705.45,703.52,1.05850441]
[1735107925808,0.26093363,705.44,703.52,1.05850441]
[1735107926002,0.26093363,705.43,703.52,1.05850441]
[1735107926309,0.26093363,705.42,703.25,1.05850441]
[1735107926507,0.26093363,705.41,703.25,1.05850441]
[1735107926707,0.26093363,705.4,703.25,1.05850441]
[1735107926907,0.26105303,705.39,703.25,1.05850441]
[1735107927108,0.26105303,705.38,703.25,1.05850441]
[1735107927407,0.26105303,705.38,702.5,1.27020529]
[1735107927408,0.26105303,705.37,703.02,1.05850441]
[1735107927603,0.26105303,705.36,703.02,1.05850441]
[1735107927805,0.26105303,705.35,703.02,1.05850441]
[1735107928004,0.26105303,705.34,703.02,1.05850441]
[1735107928209,0.26105303,705.33,702.95,1.05850441]
[1735107928403,0.26105303,705.32,702.97,0.28450716]
[1735107928607,0.26105303,705.31,702.97,0.28450716]
[1735107928805,0.28346278,705.56,702.97,0.28450716]
[1735107929005,0.26104879,705.55,702.97,0.28450716]
[1735107930214,0.26104879,705.54,702.97,0.28450716]
[1735107930412,0.26104879,705.53,702.97,0.28450716]
[1735107930612,0.26104879,705.52,702.97,0.28450716]
[1735107930813,0.26104879,705.51,702.97,0.28450716]
[1735107931013,0.26104879,705.5,702.97,0.28450716]
[1735107931215,0.26104879,705.49,702.97,0.28450716]
[1735107931414,0.26104879,705.48,702.97,0.28450716]
[1735107931615,0.26108735,705.47,702.97,0.28450716]
[1735107931812,0.26108735,705.46,702.97,0.28450716]
[1735107932111,0.26108735,705.45,702.97,0.28450716]
[1735107932317,0.26108735,705.44,702.97,0.28450716]
[1735107932515,0.28346278,705.56,702.97,0.28450716]
[1735107932516,0.26108735,705.43,702.97,0.28450716]
[1735107932717,0.26108735,705.42,702.97,0.28450716]
[1735107932916,0.26108735,705.41,702.97,0.28450716]
[1735107933120,0.26108735,705.4,702.97,0.28450716]
[1735107933319,0.26108735,705.39,702.97,0.28450716]
[1735107933513,0.26108735,705.38,702.97,0.28450716]
[1735107933715,0.26108735,705.37,702.97,0.28450716]
[1735107934019,0.26108735,705.36,702.97,0.28450716]
[1735107934216,0.26108735,705.35,702.97,0.28450716]
[1735107934416,0.26109382,705.34,702.97,0.28450716]
[1735107934618,0.26109382,705.33,702.97,0.28450716]
[1735107934915,0.26109382,705.32,702.97,0.28450716]
[1735107935119,0.26109382,705.31,702.97,0.28450716]
[1735107935321,0.26109382,705.3,702.97,0.28450716]
[1735107935520,0.26109382,705.29,702.97,0.28450716]
[1735107935721,0.26109382,705.28,702.97,0.28450716]
[1735107935915,0.26109382,705.27,702.97,0.28450716]
[1735107936118,0.26109382,705.26,702.97,0.28450716]
[1735107936314,0.26109382,705.25,702.97,0.28450716]
[1735107936521,0.26109382,705.24,702.97,0.28450716]
[1735107936820,0.26109382,705.23,702.97,0.28450716]
[1735107937019,0.26109382,705.22,702.97,0.28450716]
[1735107937221,0.26115444,705.21,702.97,0.28450716]
[1735107937421,0.26115444,705.2,702.97,0.28450716]
[1735107937623,0.28346278,705.56,702.97,0.28450716]
[1735107937624,0.26115444,705.19,702.97,0.28450716]
[1735107937823,0.26115444,705.18,702.97,0.28450716]
[1735107938026,0.26115444,705.17,702.97,0.28450716]
[1735107938320,0.26115444,705.16,702.97,0.28450716]
[1735107938523,0.26115444,705.15,702.97,0.28450716]
[1735107938722,0.26115444,705.14,702.97,0.28450716]
[1735107938922,0.28346278,705.56,702.97,0.28450716]
[1735107938923,0.26115444,705.13,702.97,0.28450716]
[1735107939228,0.26115444,705.12,702.97,0.28450716]
[1735107939423,0.26115444,705.11,702.97,0.28450716]
[1735107939624,0.26115444,705.1,702.97,0.28450716]
[1735107939824,0.28346278,705.56,702.97,0.28450716]
[1735107940022,0.26116843,705.55,702.97,0.28450716]
[1735107940222,0.26116843,705.54,702.97,0.28450716]
[1735107940519,0.26116843,705.53,702.97,0.28450716]
[1735107940723,0.26116843,705.52,702.97,0.28450716]
[1735107940925,0.26116843,705.51,702.97,0.28450716]
[1735107941124,0.26116843,705.5,702.97,0.28450716]
[1735107941322,0.26116843,705.49,702.97,0.28450716]
[1735107941526,0.26116843,705.48,702.97,0.28450716]
[1735107941721,0.26116843,705.47,702.97,0.28450716]
[1735107941925,0.26116843,705.46,702.97,0.28450716]
[1735107942126,0.26116843,705.45,702.97,0.28450716]
[1735107942326,0.26116843,705.44,702.97,0.28450716]
[1735107942526,0.26118225,705.43,702.97,0.28450716]
[1735107942827,0.26118225,705.42,702.97,0.28450716]
[1735107943021,0.26118225,705.41,702.97,0.28450716]
[1735107943225,0.26118225,705.4,702.97,0.28450716]
[1735107943424,0.28346278,705.56,702.97,0.28450716]
[1735107943425,0.26118937,705.39,702.97,0.28450716]
[1735107943628,0.26118937,705.38,702.97,0.28450716]
[1735107943922,0.26118937,705.37,702.97,0.28450716]
[1735107944131,0.26118937,705.36,702.97,0.28450716]
[1735107944327,0.26118937,705.35,702.97,0.28450716]
[1735107944530,0.26118937,705.34,702.97,0.28450716]
[1735107944726,0.26118937,705.33,702.97,0.28450716]
[1735107944925,0.26118937,705.32,702.97,0.28450716]
[1735107945130,0.26118937,705.31,702.97,0.28450716]
[1735107945332,0.26118279,705.3,702.97,0.28450716]
[1735107945531,0.26118279,705.29,702.97,0.28450716]
[1735107945733,0.26118279,705.28,702.97,0.28450716]
[1735107946026,0.26118279,705.27,702.97,0.28450716]
[1735107946231,0.26118279,705.26,702.97,0.28450716]
[1735107946432,0.26118279,705.25,702.97,0.28450716]
[1735107946627,0.26118279,705.24,702.97,0.28450716]
[1735107946830,0.26118279,705.23,702.97,0.28450716]
[1735107947027,0.26118279,705.22,702.97,0.28450716]
[1735107947230,0.26118279,705.21,702.97,0.28450716]
[1735107947424,0.26118279,705.2,702.97,0.28450716]
[1735107947631,0.26118279,705.19,702.97,0.28450716]
[1735107947831,0.26118279,705.18,702.97,0.28450716]
[1735107948027,0.26118279,705.17,702.97,0.28450716]
[1735107948233,0.26118279,705.16,702.97,0.28450716]
[1735107948432,0.26118279,705.15,702.97,0.28450716]
[1735107948632,0.26118279,705.14,702.97,0.28450716]
[1735107948835,0.26118279,705.13,702.97,0.28450716]
[1735107949028,0.28367587,705.03,702.97,0.28450716]
[1735107949235,0.26118279,705.02,702.97,0.28450716]
[1735107949428,0.26118279,705.01,702.97,0.28450716]
[1735107949632,0.28372416,704.91,702.97,0.28450716]
[1735107949828,0.26118279,704.9,702.97,0.28450716]
[1735107950030,0.28373623,704.88,702.97,0.28450716]
[1735107950232,0.26118279,704.87,702.97,0.28450716]
[1735107950433,0.28374831,704.85,702.97,0.28450716]
[1735107950826,0.26121704,704.84,702.97,0.28450716]
[1735107951028,0.28376039,704.82,702.97,0.28450716]
[1735107951231,0.26121704,704.81,702.97,0.28450716]
[1735107951430,0.28376039,704.82,702.97,0.28450716]
[1735107951628,0.26122298,704.81,702.97,0.28450716]
[1735107951830,0.26122298,704.8,702.97,0.28450716]
[1735107952029,0.26122298,704.79,702.97,0.28450716]
[1735107952232,0.26122298,704.78,702.97,0.28450716]
[1735107952428,0.26122298,704.77,702.97,0.28450716]
[1735107952628,0.26122298,704.76,702.97,0.28450716]
[1735107952935,0.26122298,704.75,702.97,0.28450716]
[1735107953236,0.26122298,704.74,702.97,0.28450716]